[Event "Titled Tuesday Blitz October 12 2021"]
[White "Lewtak, Damian"]
[Black "Le, Tuan Minh"]
[WhiteFideId "1141724"]
[BlackFideId "12401153"]
[WhiteElo "2203"]
[BlackElo "2450"]
[Result "0-1"]
[Round "02"]
[TimeControl "180+1"]
[Date "2021.10.12"]
[WhiteClock "0:00:02"]
[BlackClock "0:00:04"]

1. d4 {[%clk 0:02:45]}  d5 {[%clk 0:02:59]} 2. Nf3 {[%clk 0:02:46]}  Nf6 {[%clk 0:02:59]} 3. Bf4 {[%clk 0:02:47]}  e6 {[%clk 0:02:55]} 4. e3 {[%clk 0:02:47]}  Bd6 {[%clk 0:02:55]} 5. Bxd6 {[%clk 0:02:47]}  Qxd6 {[%clk 0:02:55]} 6. Nbd2 {[%clk 0:02:47]}  c5 {[%clk 0:02:54]} 7. dxc5 {[%clk 0:02:46]}  Qxc5 {[%clk 0:02:54]} 8. c4 {[%clk 0:02:47]}  O-O {[%clk 0:02:52]} 9. Rc1 {[%clk 0:02:47]}  Nc6 {[%clk 0:02:51]} 10. Be2 {[%clk 0:02:46]}  d4 {[%clk 0:02:30]} 11. exd4 {[%clk 0:02:23]}  Nxd4 {[%clk 0:02:30]} 12. Nxd4 {[%clk 0:02:23]}  Qxd4 {[%clk 0:02:30]} 13. Qc2 {[%clk 0:02:18]}  Rd8 {[%clk 0:02:12]} 14. Nf3 {[%clk 0:02:11]}  Qf4 {[%clk 0:02:10]} 15. O-O {[%clk 0:01:56]}  Bd7 {[%clk 0:02:05]} 16. Rfd1 {[%clk 0:01:52]}  Bc6 {[%clk 0:02:05]} 17. g3 {[%clk 0:01:45]}  Qc7 {[%clk 0:01:56]} 18. Nd4 {[%clk 0:01:42]}  Be4 {[%clk 0:01:40]} 19. Qc3 {[%clk 0:01:42]}  a6 {[%clk 0:01:32]} 20. Nb3 {[%clk 0:01:24]}  Rac8 {[%clk 0:01:18]} 21. Rxd8+ {[%clk 0:01:23]}  Rxd8 {[%clk 0:01:19]} 22. Rd1 {[%clk 0:01:21]}  Rxd1+ {[%clk 0:00:55]} 23. Bxd1 {[%clk 0:01:22]}  h6 {[%clk 0:00:55]} 24. f3 {[%clk 0:01:17]}  Bc6 {[%clk 0:00:55]} 25. Nd4 {[%clk 0:01:14]}  Nd7 {[%clk 0:00:52]} 26. Be2 {[%clk 0:01:11]}  Qd6 {[%clk 0:00:48]} 27. b4 {[%clk 0:01:07]}  e5 {[%clk 0:00:35]} 28. Nf5 {[%clk 0:01:06]}  Qf6 {[%clk 0:00:35]} 29. g4 {[%clk 0:01:03]}  Nf8 {[%clk 0:00:34]} 30. b5 {[%clk 0:00:54]}  Bd7 {[%clk 0:00:34]} 31. bxa6 {[%clk 0:00:44]}  bxa6 {[%clk 0:00:33]} 32. c5 {[%clk 0:00:45]}  Ng6 {[%clk 0:00:29]} 33. Bd3 {[%clk 0:00:37]}  Nf4 {[%clk 0:00:25]} 34. Kf2 {[%clk 0:00:35]}  Bxf5 {[%clk 0:00:23]} 35. Bxf5 {[%clk 0:00:34]}  Qh4+ {[%clk 0:00:23]} 36. Kf1 {[%clk 0:00:29]}  Qh3+ {[%clk 0:00:23]} 37. Ke1 {[%clk 0:00:29]}  Qxh2 {[%clk 0:00:23]} 38. Kd1 {[%clk 0:00:25]}  Qg1+ {[%clk 0:00:19]} 39. Kc2 {[%clk 0:00:23]}  Nd5 {[%clk 0:00:17]} 40. Qxe5 {[%clk 0:00:17]}  Qxc5+ {[%clk 0:00:17]} 41. Kd2 {[%clk 0:00:17]}  Qf2+ {[%clk 0:00:11]} 42. Kd3 {[%clk 0:00:15]}  Qxf3+ {[%clk 0:00:11]} 43. Kd4 {[%clk 0:00:14]}  g6 {[%clk 0:00:07]} 44. Be4 {[%clk 0:00:12]}  Qxg4 {[%clk 0:00:03]} 45. Kxd5 {[%clk 0:00:12]}  Qd7+ {[%clk 0:00:03]} 46. Kc5 {[%clk 0:00:11]}  Qb5+ {[%clk 0:00:04]} 47. Kd4 {[%clk 0:00:11]}  Qb2+ {[%clk 0:00:04]} 48. Kd5 {[%clk 0:00:10]}  Qxa2+ {[%clk 0:00:05]} 49. Kd6 {[%clk 0:00:11]}  Qa3+ {[%clk 0:00:04]} 50. Kd7 {[%clk 0:00:10]}  Qa4+ {[%clk 0:00:04]} 51. Bc6 {[%clk 0:00:10]}  Qg4+ {[%clk 0:00:04]} 52. Ke7 {[%clk 0:00:09]}  Qg5+ {[%clk 0:00:04]} 53. Qxg5 {[%clk 0:00:08]}  hxg5 {[%clk 0:00:05]} 54. Kf6 {[%clk 0:00:08]}  g4 {[%clk 0:00:05]} 55. Kg5 {[%clk 0:00:08]}  g3 {[%clk 0:00:02]} 56. Kg4 {[%clk 0:00:08]}  Kg7 {[%clk 0:00:03]} 57. Kxg3 {[%clk 0:00:08]}  Kf6 {[%clk 0:00:04]} 58. Kf4 {[%clk 0:00:09]}  a5 {[%clk 0:00:04]} 59. Ba4 {[%clk 0:00:08]}  Ke7 {[%clk 0:00:05]} 60. Kg5 {[%clk 0:00:08]}  Kd6 {[%clk 0:00:04]} 61. Kf6 {[%clk 0:00:08]}  Kc5 {[%clk 0:00:04]} 62. Kxf7 {[%clk 0:00:06]}  g5 {[%clk 0:00:05]} 63. Bd7 {[%clk 0:00:05]}  Kd6 {[%clk 0:00:05]} 64. Bf5 {[%clk 0:00:02]}  Ke5 {[%clk 0:00:04]} 0-1


[Site "https://www.chess.com"]

[Event "Titled Tuesday Blitz October 12 2021"]
[White "Martic, Ivan"]
[Black "Ibrahimli, Murad"]
[WhiteFideId "929301"]
[BlackFideId "13410229"]
[WhiteElo "2290"]
[BlackElo "2109"]
[Result "0-1"]
[Round "02"]
[TimeControl "180+1"]
[Date "2021.10.12"]
[WhiteClock "0:00:06"]
[BlackClock "0:00:17"]

1. e4 {[%clk 0:03:00]}  e5 {[%clk 0:02:58]} 2. Nf3 {[%clk 0:02:59]}  Nc6 {[%clk 0:02:59]} 3. Bb5 {[%clk 0:02:59]}  Nf6 {[%clk 0:02:59]} 4. d3 {[%clk 0:02:58]}  Bc5 {[%clk 0:02:57]} 5. c3 {[%clk 0:02:57]}  O-O {[%clk 0:02:56]} 6. O-O {[%clk 0:02:57]}  d6 {[%clk 0:02:53]} 7. Nbd2 {[%clk 0:02:55]}  Ne7 {[%clk 0:02:43]} 8. h3 {[%clk 0:02:49]}  a6 {[%clk 0:02:33]} 9. Ba4 {[%clk 0:02:48]}  b5 {[%clk 0:02:33]} 10. Bb3 {[%clk 0:02:47]}  Bb6 {[%clk 0:02:31]} 11. Re1 {[%clk 0:02:46]}  Ng6 {[%clk 0:02:31]} 12. Nf1 {[%clk 0:02:46]}  h6 {[%clk 0:02:29]} 13. Be3 {[%clk 0:02:40]}  Bxe3 {[%clk 0:02:23]} 14. Nxe3 {[%clk 0:02:41]}  Nf4 {[%clk 0:02:23]} 15. a4 {[%clk 0:02:27]}  Rb8 {[%clk 0:02:17]} 16. axb5 {[%clk 0:02:26]}  axb5 {[%clk 0:02:18]} 17. Kh2 {[%clk 0:02:24]}  g5 {[%clk 0:02:07]} 18. Nf5 {[%clk 0:02:16]}  Bxf5 {[%clk 0:01:53]} 19. exf5 {[%clk 0:02:17]}  g4 {[%clk 0:01:54]} 20. Ng1 {[%clk 0:01:40]}  gxh3 {[%clk 0:01:45]} 21. g3 {[%clk 0:01:39]}  N4h5 {[%clk 0:01:45]} 22. Nxh3 {[%clk 0:01:33]}  Ng7 {[%clk 0:01:28]} 23. Qf3 {[%clk 0:01:31]}  Nh7 {[%clk 0:01:28]} 24. d4 {[%clk 0:01:27]}  exd4 {[%clk 0:01:24]} 25. cxd4 {[%clk 0:01:26]}  Qf6 {[%clk 0:01:24]} 26. Re4 {[%clk 0:01:18]}  c5 {[%clk 0:01:17]} 27. dxc5 {[%clk 0:01:16]}  dxc5 {[%clk 0:01:18]} 28. Rg4 {[%clk 0:01:08]}  c4 {[%clk 0:01:12]} 29. Nf4 {[%clk 0:00:54]}  Ng5 {[%clk 0:01:12]} 30. Rxg5 {[%clk 0:00:46]}  Qxg5 {[%clk 0:01:02]} 31. Bc2 {[%clk 0:00:46]}  Rbd8 {[%clk 0:00:57]} 32. Ra6 {[%clk 0:00:40]}  Rd2 {[%clk 0:00:53]} 33. Be4 {[%clk 0:00:38]}  Rxb2 {[%clk 0:00:36]} 34. f6 {[%clk 0:00:37]}  Ne8 {[%clk 0:00:35]} 35. Nh3 {[%clk 0:00:36]}  Qe5 {[%clk 0:00:29]} 36. Ra8 {[%clk 0:00:17]}  Nxf6 {[%clk 0:00:22]} 37. Rxf8+ {[%clk 0:00:11]}  Kxf8 {[%clk 0:00:23]} 38. Bf5 {[%clk 0:00:11]}  c3 {[%clk 0:00:20]} 39. Kg2 {[%clk 0:00:08]}  Qd5 {[%clk 0:00:18]} 40. Nf4 {[%clk 0:00:06]}  Qxf3+ {[%clk 0:00:18]} 41. Kxf3 {[%clk 0:00:07]}  c2 {[%clk 0:00:17]} 42. Nd3 {[%clk 0:00:06]}  Rb3 {[%clk 0:00:17]} 0-1


[Site "https://www.chess.com"]

[Event "Titled Tuesday Blitz October 12 2021"]
[White "Nguyen, Ngoc Truong Son"]
[Black "Alexakis, Dimitris"]
[WhiteFideId "12401110"]
[BlackFideId "4277023"]
[WhiteElo "2596"]
[BlackElo "2409"]
[Result "1-0"]
[Round "02"]
[TimeControl "180+1"]
[Date "2021.10.12"]
[WhiteClock "0:00:54"]
[BlackClock "0:00:11"]

1. d4 {[%clk 0:03:00]}  Nf6 {[%clk 0:02:58]} 2. Nf3 {[%clk 0:03:01]}  c5 {[%clk 0:02:54]} 3. d5 {[%clk 0:02:55]}  e6 {[%clk 0:02:50]} 4. Nc3 {[%clk 0:02:55]}  exd5 {[%clk 0:02:46]} 5. Nxd5 {[%clk 0:02:56]}  Nxd5 {[%clk 0:02:47]} 6. Qxd5 {[%clk 0:02:56]}  Nc6 {[%clk 0:02:47]} 7. e4 {[%clk 0:02:52]}  d6 {[%clk 0:02:40]} 8. Bc4 {[%clk 0:02:45]}  Be6 {[%clk 0:02:36]} 9. Qd3 {[%clk 0:02:44]}  Be7 {[%clk 0:02:27]} 10. Bd2 {[%clk 0:02:35]}  O-O {[%clk 0:02:16]} 11. Bc3 {[%clk 0:02:25]}  Nb4 {[%clk 0:01:38]} 12. Bxb4 {[%clk 0:02:24]}  cxb4 {[%clk 0:01:39]} 13. Bxe6 {[%clk 0:02:18]}  fxe6 {[%clk 0:01:40]} 14. Qb3 {[%clk 0:02:14]}  Qd7 {[%clk 0:01:06]} 15. O-O {[%clk 0:01:53]}  Kh8 {[%clk 0:00:49]} 16. Rad1 {[%clk 0:01:49]}  a5 {[%clk 0:00:46]} 17. h3 {[%clk 0:01:42]}  Rf4 {[%clk 0:00:44]} 18. Rfe1 {[%clk 0:01:37]}  Raf8 {[%clk 0:00:43]} 19. Rd3 {[%clk 0:01:31]}  b5 {[%clk 0:00:36]} 20. c3 {[%clk 0:01:13]}  bxc3 {[%clk 0:00:26]} 21. Qxc3 {[%clk 0:01:14]}  a4 {[%clk 0:00:21]} 22. Re2 {[%clk 0:01:08]}  Qc8 {[%clk 0:00:20]} 23. Qxc8 {[%clk 0:01:06]}  Rxc8 {[%clk 0:00:21]} 24. Nd4 {[%clk 0:01:03]}  Rc1+ {[%clk 0:00:20]} 25. Kh2 {[%clk 0:01:03]}  Bf6 {[%clk 0:00:18]} 26. Nxe6 {[%clk 0:01:01]}  Rh4 {[%clk 0:00:18]} 27. g3 {[%clk 0:01:00]}  Rh5 {[%clk 0:00:16]} 28. Rxd6 {[%clk 0:00:59]}  h6 {[%clk 0:00:17]} 29. Nf4 {[%clk 0:00:57]}  Rg5 {[%clk 0:00:15]} 30. e5 {[%clk 0:00:56]}  Bxe5 {[%clk 0:00:09]} 31. Rxe5 {[%clk 0:00:55]}  Rxe5 {[%clk 0:00:10]} 32. Ng6+ {[%clk 0:00:56]}  Kh7 {[%clk 0:00:10]} 33. Nxe5 {[%clk 0:00:56]}  Rc2 {[%clk 0:00:11]} 34. Nd3 {[%clk 0:00:56]}  Rd2 {[%clk 0:00:10]} 35. a3 {[%clk 0:00:54]}  Kg8 {[%clk 0:00:09]} 36. Kg2 {[%clk 0:00:54]}  Kf8 {[%clk 0:00:10]} 37. Kf3 {[%clk 0:00:54]}  Ke7 {[%clk 0:00:11]} 38. Rd5 {[%clk 0:00:54]} 1-0


[Site "https://www.chess.com"]

[Event "Titled Tuesday Blitz October 12 2021"]
[White "Sadovsky, Artem"]
[Black "Kovalev, Vladislav"]
[WhiteFideId "4155840"]
[BlackFideId "13504398"]
[WhiteElo "2370"]
[BlackElo "2573"]
[Result "1-0"]
[Round "02"]
[TimeControl "180+1"]
[Date "2021.10.12"]
[WhiteClock "0:00:19"]
[BlackClock "0:00:02"]

1. Nf3 {[%clk 0:02:59]}  Nf6 {[%clk 0:02:59]} 2. g3 {[%clk 0:02:59]}  g6 {[%clk 0:02:59]} 3. Bg2 {[%clk 0:03:00]}  Bg7 {[%clk 0:03:00]} 4. O-O {[%clk 0:03:00]}  O-O {[%clk 0:03:01]} 5. c4 {[%clk 0:03:01]}  d6 {[%clk 0:03:01]} 6. b3 {[%clk 0:03:02]}  e5 {[%clk 0:03:01]} 7. Bb2 {[%clk 0:03:02]}  Re8 {[%clk 0:03:00]} 8. Ne1 {[%clk 0:02:51]}  c5 {[%clk 0:02:56]} 9. Nc3 {[%clk 0:02:48]}  Nc6 {[%clk 0:02:55]} 10. Nc2 {[%clk 0:02:49]}  h5 {[%clk 0:02:53]} 11. Nd5 {[%clk 0:02:08]}  Nxd5 {[%clk 0:02:43]} 12. cxd5 {[%clk 0:02:03]}  Ne7 {[%clk 0:02:40]} 13. f4 {[%clk 0:01:49]}  Nf5 {[%clk 0:01:33]} 14. e4 {[%clk 0:01:17]}  Nd4 {[%clk 0:01:34]} 15. Nxd4 {[%clk 0:01:16]}  cxd4 {[%clk 0:01:35]} 16. d3 {[%clk 0:01:13]}  Bd7 {[%clk 0:01:26]} 17. Rc1 {[%clk 0:00:55]}  Rc8 {[%clk 0:01:26]} 18. Rxc8 {[%clk 0:00:54]}  Qxc8 {[%clk 0:01:25]} 19. Qd2 {[%clk 0:00:49]}  Bh6 {[%clk 0:01:20]} 20. Rc1 {[%clk 0:00:49]}  Qd8 {[%clk 0:01:20]} 21. Qb4 {[%clk 0:00:39]}  Qe7 {[%clk 0:00:45]} 22. Rf1 {[%clk 0:00:36]}  Rc8 {[%clk 0:00:37]} 23. fxe5 {[%clk 0:00:33]}  Be3+ {[%clk 0:00:37]} 24. Kh1 {[%clk 0:00:34]}  Qxe5 {[%clk 0:00:37]} 25. Qxb7 {[%clk 0:00:32]}  Qe8 {[%clk 0:00:13]} 26. Qxa7 {[%clk 0:00:31]}  Ra8 {[%clk 0:00:13]} 27. Qb6 {[%clk 0:00:31]}  Rxa2 {[%clk 0:00:09]} 28. Bxd4 {[%clk 0:00:31]}  Bxd4 {[%clk 0:00:10]} 29. Qxd4 {[%clk 0:00:32]}  h4 {[%clk 0:00:10]} 30. gxh4 {[%clk 0:00:28]}  Qe7 {[%clk 0:00:10]} 31. Qf6 {[%clk 0:00:27]}  Qxf6 {[%clk 0:00:10]} 32. Rxf6 {[%clk 0:00:28]}  Ra1+ {[%clk 0:00:07]} 33. Rf1 {[%clk 0:00:28]}  Ra2 {[%clk 0:00:08]} 34. Rb1 {[%clk 0:00:23]}  Bb5 {[%clk 0:00:07]} 35. d4 {[%clk 0:00:18]}  Rd2 {[%clk 0:00:05]} 36. e5 {[%clk 0:00:18]}  Rxd4 {[%clk 0:00:05]} 37. exd6 {[%clk 0:00:19]}  Kf8 {[%clk 0:00:06]} 38. Re1 {[%clk 0:00:17]}  Rd2 {[%clk 0:00:03]} 39. Bf1 {[%clk 0:00:15]}  Bxf1 {[%clk 0:00:03]} 40. d7 {[%clk 0:00:15]}  Rxd5 {[%clk 0:00:04]} 41. Re8+ {[%clk 0:00:14]}  Kg7 {[%clk 0:00:04]} 42. d8=Q {[%clk 0:00:15]}  Rxd8 {[%clk 0:00:03]} 43. Rxd8 {[%clk 0:00:16]}  Be2 {[%clk 0:00:02]} 44. Kg1 {[%clk 0:00:16]}  Kf6 {[%clk 0:00:02]} 45. b4 {[%clk 0:00:17]}  Ke7 {[%clk 0:00:02]} 46. Rd2 {[%clk 0:00:17]}  Bb5 {[%clk 0:00:02]} 47. Kf2 {[%clk 0:00:18]}  Ke6 {[%clk 0:00:02]} 48. Kg3 {[%clk 0:00:19]} 1-0


[Site "https://www.chess.com"]

[Event "Titled Tuesday Blitz October 12 2021"]
[White "Sokolovsky, Yahli"]
[Black "Warmerdam, Max"]
[WhiteFideId "2820242"]
[BlackFideId "1048104"]
[WhiteElo "1770"]
[BlackElo "2537"]
[Result "1-0"]
[Round "02"]
[TimeControl "180+1"]
[Date "2021.10.12"]
[WhiteClock "0:00:08"]
[BlackClock "0:00:15"]

1. b3 {[%clk 0:03:00]}  d5 {[%clk 0:02:59]} 2. Bb2 {[%clk 0:03:01]}  Bg4 {[%clk 0:03:00]} 3. h3 {[%clk 0:02:56]}  Bh5 {[%clk 0:02:59]} 4. Nf3 {[%clk 0:02:53]}  e6 {[%clk 0:02:58]} 5. g4 {[%clk 0:02:47]}  Bg6 {[%clk 0:02:58]} 6. d3 {[%clk 0:02:46]}  a5 {[%clk 0:02:59]} 7. a4 {[%clk 0:02:46]}  Nd7 {[%clk 0:02:57]} 8. Bg2 {[%clk 0:02:45]}  Ngf6 {[%clk 0:02:57]} 9. Nh4 {[%clk 0:02:37]}  Bd6 {[%clk 0:02:53]} 10. Nd2 {[%clk 0:02:32]}  O-O {[%clk 0:02:50]} 11. Nxg6 {[%clk 0:02:31]}  hxg6 {[%clk 0:02:50]} 12. O-O {[%clk 0:02:31]}  c6 {[%clk 0:02:49]} 13. e4 {[%clk 0:02:31]}  Bf4 {[%clk 0:02:48]} 14. Qe2 {[%clk 0:02:28]}  Qc7 {[%clk 0:02:45]} 15. Nf3 {[%clk 0:02:25]}  c5 {[%clk 0:02:39]} 16. e5 {[%clk 0:02:20]}  Nh7 {[%clk 0:02:35]} 17. Rfe1 {[%clk 0:02:15]}  Rfc8 {[%clk 0:02:32]} 18. Nd2 {[%clk 0:02:07]}  g5 {[%clk 0:02:27]} 19. Nf3 {[%clk 0:01:15]}  Nhf8 {[%clk 0:02:27]} 20. Bc1 {[%clk 0:01:16]}  Bxc1 {[%clk 0:02:25]} 21. Raxc1 {[%clk 0:01:16]}  Ng6 {[%clk 0:02:17]} 22. Nxg5 {[%clk 0:01:16]}  Ndxe5 {[%clk 0:02:17]} 23. Qd2 {[%clk 0:01:11]}  Nc6 {[%clk 0:02:15]} 24. Qe3 {[%clk 0:00:52]}  Nd4 {[%clk 0:02:09]} 25. c3 {[%clk 0:00:41]}  Nxb3 {[%clk 0:02:04]} 26. Rb1 {[%clk 0:00:41]}  c4 {[%clk 0:02:03]} 27. Nxe6 {[%clk 0:00:35]}  fxe6 {[%clk 0:02:00]} 28. Qxe6+ {[%clk 0:00:36]}  Kh7 {[%clk 0:02:00]} 29. Qf5 {[%clk 0:00:36]}  Qf4 {[%clk 0:01:53]} 30. Bxd5 {[%clk 0:00:30]}  Qxf5 {[%clk 0:01:30]} 31. gxf5 {[%clk 0:00:31]}  Nf4 {[%clk 0:01:31]} 32. dxc4 {[%clk 0:00:23]}  Nd2 {[%clk 0:01:30]} 33. Rbd1 {[%clk 0:00:22]}  Nxc4 {[%clk 0:01:26]} 34. Bxb7 {[%clk 0:00:19]}  Rab8 {[%clk 0:01:21]} 35. Bxc8 {[%clk 0:00:20]}  Rxc8 {[%clk 0:01:22]} 36. Kh2 {[%clk 0:00:18]}  Nb6 {[%clk 0:01:20]} 37. Re3 {[%clk 0:00:16]}  Nfd5 {[%clk 0:01:18]} 38. Re5 {[%clk 0:00:11]}  Nxc3 {[%clk 0:01:13]} 39. Rc1 {[%clk 0:00:11]}  Nbxa4 {[%clk 0:01:13]} 40. Rxa5 {[%clk 0:00:11]}  Rd8 {[%clk 0:01:10]} 41. Rc2 {[%clk 0:00:06]}  Rd4 {[%clk 0:01:06]} 42. Kg3 {[%clk 0:00:05]}  Ne4+ {[%clk 0:01:05]} 43. Kg2 {[%clk 0:00:05]}  Nf6 {[%clk 0:01:00]} 44. Rc7 {[%clk 0:00:03]}  Nh5 {[%clk 0:00:49]} 45. Kf1 {[%clk 0:00:01]}  Nb6 {[%clk 0:00:47]} 46. f6 {[%clk 0:00:02]}  Nxf6 {[%clk 0:00:47]} 47. Rg5 {[%clk 0:00:02]}  Nbd7 {[%clk 0:00:43]} 48. Ra5 {[%clk 0:00:02]}  Nf8 {[%clk 0:00:40]} 49. Raa7 {[%clk 0:00:02]}  Nh5 {[%clk 0:00:39]} 50. Ke2 {[%clk 0:00:02]}  Ng6 {[%clk 0:00:37]} 51. Rc5 {[%clk 0:00:02]}  Rh4 {[%clk 0:00:37]} 52. Raa5 {[%clk 0:00:01]}  Ngf4+ {[%clk 0:00:37]} 53. Kf3 {[%clk 0:00:02]}  g6 {[%clk 0:00:34]} 54. Rc7+ {[%clk 0:00:01]}  Kh6 {[%clk 0:00:35]} 55. Raa7 {[%clk 0:00:02]}  Rxh3+ {[%clk 0:00:35]} 56. Kg4 {[%clk 0:00:02]}  Nf6+ {[%clk 0:00:12]} 57. Kxf4 {[%clk 0:00:03]}  Rh4+ {[%clk 0:00:12]} 58. Kg3 {[%clk 0:00:03]}  Rb4 {[%clk 0:00:10]} 59. Rc6 {[%clk 0:00:03]}  Nh5+ {[%clk 0:00:10]} 60. Kg2 {[%clk 0:00:04]}  Rg4+ {[%clk 0:00:10]} 61. Kf3 {[%clk 0:00:04]}  Rf4+ {[%clk 0:00:11]} 62. Ke3 {[%clk 0:00:04]}  Rg4 {[%clk 0:00:11]} 63. Raa6 {[%clk 0:00:05]}  Rg1 {[%clk 0:00:11]} 64. Rc4 {[%clk 0:00:05]}  Ng7 {[%clk 0:00:11]} 65. Kf3 {[%clk 0:00:05]}  Nf5 {[%clk 0:00:11]} 66. Rg4 {[%clk 0:00:05]}  Nd4+ {[%clk 0:00:10]} 67. Rxd4 {[%clk 0:00:05]}  Rg5 {[%clk 0:00:11]} 68. Rg4 {[%clk 0:00:05]}  Rf5+ {[%clk 0:00:12]} 69. Kg3 {[%clk 0:00:06]}  Kh5 {[%clk 0:00:11]} 70. Rgxg6 {[%clk 0:00:04]}  Rb5 {[%clk 0:00:10]} 71. Rh6+ {[%clk 0:00:04]}  Kg5 {[%clk 0:00:11]} 72. Rag6+ {[%clk 0:00:04]}  Kf5 {[%clk 0:00:12]} 73. Rg8 {[%clk 0:00:05]}  Rb3+ {[%clk 0:00:12]} 74. Kg2 {[%clk 0:00:06]}  Rb1 {[%clk 0:00:12]} 75. Rh5+ {[%clk 0:00:06]}  Kf6 {[%clk 0:00:13]} 76. Rh3 {[%clk 0:00:06]}  Kf7 {[%clk 0:00:14]} 77. Rg4 {[%clk 0:00:06]}  Rb6 {[%clk 0:00:14]} 78. Rf3+ {[%clk 0:00:07]}  Ke7 {[%clk 0:00:15]} 79. Re4+ {[%clk 0:00:08]}  Kd7 {[%clk 0:00:15]} 80. Rd3+ {[%clk 0:00:08]} 1-0


[Site "https://www.chess.com"]

[Event "Titled Tuesday Blitz October 12 2021"]
[White "Stoleriu, George"]
[Black "Tabatabaei, M. Amin"]
[WhiteFideId "1227505"]
[BlackFideId "12521213"]
[WhiteElo "2199"]
[BlackElo "2555"]
[Result "0-1"]
[Round "02"]
[TimeControl "180+1"]
[Date "2021.10.12"]
[WhiteClock "0:00:07"]
[BlackClock "0:00:22"]

1. e4 {[%clk 0:03:00]}  b6 {[%clk 0:02:53]} 2. d4 {[%clk 0:03:00]}  e6 {[%clk 0:02:54]} 3. Nf3 {[%clk 0:02:55]}  d5 {[%clk 0:02:52]} 4. e5 {[%clk 0:02:54]}  c5 {[%clk 0:02:50]} 5. c3 {[%clk 0:02:54]}  Qd7 {[%clk 0:02:49]} 6. Bd3 {[%clk 0:02:45]}  Ba6 {[%clk 0:02:49]} 7. O-O {[%clk 0:02:45]}  Bxd3 {[%clk 0:02:47]} 8. Qxd3 {[%clk 0:02:46]}  Ne7 {[%clk 0:02:44]} 9. a4 {[%clk 0:02:46]}  Nbc6 {[%clk 0:02:43]} 10. Na3 {[%clk 0:02:46]}  Nf5 {[%clk 0:02:38]} 11. g4 {[%clk 0:02:46]}  c4 {[%clk 0:02:31]} 12. Qe2 {[%clk 0:02:39]}  Nfe7 {[%clk 0:02:29]} 13. Nh4 {[%clk 0:02:37]}  h5 {[%clk 0:02:26]} 14. gxh5 {[%clk 0:02:31]}  g6 {[%clk 0:02:26]} 15. Nb5 {[%clk 0:02:25]}  Nc8 {[%clk 0:02:17]} 16. h6 {[%clk 0:02:25]}  a6 {[%clk 0:02:12]} 17. Na3 {[%clk 0:02:00]}  Bxh6 {[%clk 0:02:12]} 18. Bxh6 {[%clk 0:01:45]}  Rxh6 {[%clk 0:02:12]} 19. Ng2 {[%clk 0:01:45]}  N8e7 {[%clk 0:02:11]} 20. Nc2 {[%clk 0:01:39]}  Nf5 {[%clk 0:02:04]} 21. Nce3 {[%clk 0:01:37]}  Nce7 {[%clk 0:02:03]} 22. b3 {[%clk 0:01:35]}  cxb3 {[%clk 0:02:02]} 23. Rfb1 {[%clk 0:01:33]}  Qc6 {[%clk 0:01:51]} 24. Rxb3 {[%clk 0:01:32]}  Kf8 {[%clk 0:01:47]} 25. Ng4 {[%clk 0:01:13]}  Rh3 {[%clk 0:01:42]} 26. f3 {[%clk 0:01:00]}  Kg7 {[%clk 0:01:38]} 27. Nf4 {[%clk 0:00:56]}  Rh4 {[%clk 0:01:38]} 28. Ng2 {[%clk 0:00:56]}  Rh7 {[%clk 0:01:36]} 29. Nf6 {[%clk 0:00:54]}  Rh3 {[%clk 0:01:35]} 30. Nf4 {[%clk 0:00:53]}  Rh4 {[%clk 0:01:35]} 31. Ng2 {[%clk 0:00:53]}  Rh6 {[%clk 0:01:01]} 32. Ng4 {[%clk 0:00:49]}  Rhh8 {[%clk 0:01:01]} 33. Nf6 {[%clk 0:00:44]}  Ng8 {[%clk 0:00:49]} 34. Rab1 {[%clk 0:00:34]}  Nxf6 {[%clk 0:00:37]} 35. exf6+ {[%clk 0:00:35]}  Kg8 {[%clk 0:00:37]} 36. Rxb6 {[%clk 0:00:34]}  Qxc3 {[%clk 0:00:37]} 37. Rb8+ {[%clk 0:00:18]}  Kh7 {[%clk 0:00:35]} 38. Rxh8+ {[%clk 0:00:16]}  Kxh8 {[%clk 0:00:31]} 39. Rb7 {[%clk 0:00:11]}  Qxd4+ {[%clk 0:00:30]} 40. Qf2 {[%clk 0:00:12]}  Qxf6 {[%clk 0:00:30]} 41. h4 {[%clk 0:00:07]}  Rc8 {[%clk 0:00:28]} 42. Kh2 {[%clk 0:00:08]}  Kg7 {[%clk 0:00:27]} 43. Ra7 {[%clk 0:00:08]}  Rh8 {[%clk 0:00:27]} 44. Rxa6 {[%clk 0:00:06]}  Nxh4 {[%clk 0:00:26]} 45. Nxh4 {[%clk 0:00:07]}  Rxh4+ {[%clk 0:00:27]} 46. Kg1 {[%clk 0:00:08]}  Qg5+ {[%clk 0:00:26]} 47. Kf1 {[%clk 0:00:08]}  Rh1+ {[%clk 0:00:24]} 48. Ke2 {[%clk 0:00:08]}  Qe5+ {[%clk 0:00:24]} 49. Kd2 {[%clk 0:00:07]}  Qb2+ {[%clk 0:00:24]} 50. Ke3 {[%clk 0:00:08]}  Qc3+ {[%clk 0:00:25]} 51. Kf4 {[%clk 0:00:07]}  Qc4+ {[%clk 0:00:22]} 0-1


[Site "https://www.chess.com"]

[Event "Titled Tuesday Blitz October 12 2021"]
[White "Tologon tegin, Semetei"]
[Black "Perez Ponsa, Federico"]
[WhiteFideId "13800574"]
[BlackFideId "117927"]
[WhiteElo "2224"]
[BlackElo "2672"]
[Result "0-1"]
[Round "02"]
[TimeControl "180+1"]
[Date "2021.10.12"]
[WhiteClock "0:00:04"]
[BlackClock "0:02:25"]

1. d4 {[%clk 0:02:57]}  Nf6 {[%clk 0:02:51]} 2. c4 {[%clk 0:02:56]}  g6 {[%clk 0:02:51]} 3. Nc3 {[%clk 0:02:55]}  Bg7 {[%clk 0:02:52]} 4. e4 {[%clk 0:02:55]}  d6 {[%clk 0:02:53]} 5. Nf3 {[%clk 0:02:56]}  O-O {[%clk 0:02:53]} 6. Be2 {[%clk 0:02:56]}  e5 {[%clk 0:02:54]} 7. O-O {[%clk 0:02:57]}  Nc6 {[%clk 0:02:53]} 8. d5 {[%clk 0:02:57]}  Ne7 {[%clk 0:02:54]} 9. b4 {[%clk 0:02:57]}  a5 {[%clk 0:02:53]} 10. bxa5 {[%clk 0:02:57]}  c5 {[%clk 0:02:53]} 11. Nd2 {[%clk 0:02:47]}  Rxa5 {[%clk 0:02:52]} 12. a4 {[%clk 0:02:43]}  Ne8 {[%clk 0:02:48]} 13. Nb3 {[%clk 0:02:40]}  Ra6 {[%clk 0:02:48]} 14. Nb5 {[%clk 0:02:32]}  f5 {[%clk 0:02:45]} 15. f3 {[%clk 0:02:31]}  f4 {[%clk 0:02:44]} 16. Bd2 {[%clk 0:02:05]}  g5 {[%clk 0:02:43]} 17. Be1 {[%clk 0:00:39]}  Nf6 {[%clk 0:02:40]} 18. Bf2 {[%clk 0:00:36]}  Ng6 {[%clk 0:02:38]} 19. h3 {[%clk 0:00:35]}  h5 {[%clk 0:02:38]} 20. Nxc5 {[%clk 0:00:30]}  dxc5 {[%clk 0:02:36]} 21. Bxc5 {[%clk 0:00:31]}  g4 {[%clk 0:02:35]} 22. hxg4 {[%clk 0:00:07]}  hxg4 {[%clk 0:02:34]} 23. fxg4 {[%clk 0:00:07]}  Nxe4 {[%clk 0:02:34]} 24. Bxf8 {[%clk 0:00:03]}  Bxf8 {[%clk 0:02:35]} 25. d6 {[%clk 0:00:02]}  Rxd6 {[%clk 0:02:33]} 26. Nxd6 {[%clk 0:00:02]}  Bxd6 {[%clk 0:02:34]} 27. Qd5+ {[%clk 0:00:01]}  Kg7 {[%clk 0:02:34]} 28. Qxe4 {[%clk 0:00:02]}  Bc5+ {[%clk 0:02:34]} 29. Rf2 {[%clk 0:00:03]}  Bd7 {[%clk 0:02:25]} 30. Rf1 {[%clk 0:00:02]}  Bc6 {[%clk 0:02:25]} 31. Bd3 {[%clk 0:00:03]}  Bxe4 {[%clk 0:02:25]} 32. Bxe4 {[%clk 0:00:04]}  Nh4 {[%clk 0:02:25]} 0-1


[Site "https://www.chess.com"]